fUSD/lending_fUSD_20250822
["ID","MTS","AMOUNT","RATE_DAILY","PERIOD"]
[380618990,1755821432148,-179.68641523,0.00013679,2]
[380618991,1755821432159,-250.0,0.00013679,2]
[380618992,1755821432170,-150.0,0.00013679,2]
[380618993,1755821432182,-310.0,0.00013679,2]
[380618994,1755821432191,-1068.86703325,0.00013679,3]
[380618995,1755821432201,-179.68641523,0.00013687,2]
[380618996,1755821432211,-500.0,0.00013699,2]
[380618997,1755821432221,-2500.0,0.00013794,2]
[380618998,1755821432231,-179.68641523,0.00014224,2]
[380618999,1755821432241,-1200.0,0.00014999,2]
[380619000,1755821432251,-250.0,0.00015,2]
[380619001,1755821432262,-300.0,0.00015046,2]
[380619002,1755821432271,-1112.07372107,0.00015047,3]
[380619003,1755821432283,-887.92627893,0.00015047,3]
[380619004,1755821432292,-250.0,0.00015047,2]
[380619005,1755821432302,-150.0,0.00015047,2]
[380619006,1755821432312,-300.0,0.00015047,2]
[380619007,1755821432321,-2000.0,0.00015047,3]
[380619008,1755821432332,-80.12348549,0.00015047,2]
[380619009,1755821432343,-2419.87651451,0.00015047,2]
[380619010,1755821432353,-310.0,0.00015047,2]
[380619011,1755821432362,-500.0,0.00015047,2]
[380619012,1755821432372,-277.35679052,0.00015091,2]
[380619013,1755821432381,-986.497,0.00016029,2]
[380619014,1755821432391,-550.0,0.00016029,2]
[380619015,1755821432400,-1638.02806601,0.0001603,2]
[380619016,1755821432412,-741.4370113,0.0001603,2]
[380619017,1755821432423,-12309.00000002,0.0001603,2]
[380619018,1755821432434,-760.41213127,0.0001603,2]
[380619021,1755821432482,-683.8104,0.0001603,2]
[380619022,1755821432493,-875.95952308,0.0001603,2]
[380619023,1755821432505,-11142.18751643,0.0001603,2]
[380619024,1755821432546,-3113.90145189,0.0001603,2]
[380619025,1755821432556,-500.0,0.00016129,2]
[380619026,1755821432566,-2686.2083838,0.00016338,2]
[380619027,1755821432575,-283.48428267,0.00016338,2]
[380619028,1755821432584,-1388.6477,0.00016338,2]
[380619029,1755821432594,-5000.0,0.00016338,2]
[380619030,1755821432603,-2500.0,0.00016338,2]
[380619031,1755821432613,-305.37288923,0.00016367,2]
[380619032,1755821432623,-2545.0,0.00016413,8]
[380619033,1755821432633,-4312.39,0.00016428,2]
[380619034,1755821432643,-200.0,0.00016428,2]
[380619035,1755821432652,-1000.0,0.00016428,2]
[380619036,1755821432661,-1000.0,0.00016428,2]
[380619037,1755821432670,-721.12765535,0.00016428,2]
[380619039,1755821432679,-1000.0,0.00016428,2]
[380619041,1755821432688,-1000.0,0.00016428,2]
[380619043,1755821432698,-1000.0,0.00016428,2]
[380619045,1755821432707,-160.0,0.00016428,2]
[380619047,1755821432716,-1000.0,0.00016428,2]
[380619049,1755821432726,-1042.07717305,0.00016428,2]
[380619051,1755821432735,-322.6107,0.00016428,2]
[380619052,1755821432744,-151.0,0.00016428,2]
[380619053,1755821432753,-151.0,0.00016428,2]
[380619054,1755821432762,-151.0,0.00016428,2]
[380619055,1755821432773,-151.0,0.00016428,2]
[380619056,1755821432783,-151.0,0.00016428,2]
[380619057,1755821432792,-151.0,0.00016428,2]
[380619058,1755821432802,-151.0,0.00016428,2]
[380619059,1755821432813,-151.0,0.00016428,2]
[380619060,1755821432824,-151.0,0.00016428,2]
[380619061,1755821432834,-151.0,0.00016428,2]
[380619062,1755821432843,-151.0,0.00016428,2]
[380619063,1755821432853,-400.0,0.00016438,2]
[380619064,1755821432863,-400.0,0.00016438,2]
[380619065,1755821432872,-400.0,0.00016438,2]
[380619066,1755821432883,-400.0,0.00016438,2]
[380619067,1755821432893,-440.27,0.00016438,2]
[380619068,1755821432903,-400.0,0.00016438,2]
[380619069,1755821432912,-418.55,0.00016438,2]
[380619070,1755821432921,-400.0,0.00016438,2]
[380619071,1755821432930,-355.94079911,0.00016438,2]
[380619072,1755821432939,-400.0,0.00016438,2]
[380619073,1755821432948,-400.0,0.00016438,2]
[380619074,1755821432957,-567.12,0.00016438,2]
[380619075,1755821432966,-419.2079137,0.00016438,2]
[380619076,1755821432975,-400.0,0.00016438,2]
[380619077,1755821432985,-400.0,0.00016438,2]
[380619078,1755821432994,-400.0,0.00016438,2]
[380619079,1755821433003,-400.0,0.00016438,2]
[380619080,1755821433012,-400.0,0.00016438,2]
[380619081,1755821433021,-400.0,0.00016438,2]
[380619082,1755821433030,-400.0,0.00016438,2]
[380619083,1755821433040,-158.58723045,0.00016438,2]
[380619084,1755821433050,-400.0,0.00016438,2]
[380619085,1755821433060,-400.0,0.00016438,2]
[380619086,1755821433069,-400.0,0.00016438,2]
[380619087,1755821433078,-511.47,0.00016438,2]
[380619088,1755821433088,-400.0,0.00016438,2]
[380619089,1755821433097,-556.81,0.00016438,2]
[380619090,1755821433107,-424.12,0.00016438,2]
[380619091,1755821433116,-400.0,0.00016438,2]
[380619092,1755821433125,-400.0,0.00016438,2]
[380619093,1755821433135,-400.0,0.00016438,2]
[380619094,1755821433483,-400.0,0.00016438,2]
[380619095,1755821433492,-400.0,0.00016438,2]
[380619096,1755821433502,-563.26,0.00016438,2]
[380619097,1755821433511,-416.12,0.00016438,2]
[380619098,1755821433520,-409.72,0.00016438,2]
[380619099,1755821433530,-400.0,0.00016438,2]
[380619100,1755821433539,-400.0,0.00016438,2]
[380619101,1755821433549,-400.0,0.00016438,2]
[380619102,1755821433559,-590.63,0.00016438,2]
[380619103,1755821433568,-400.0,0.00016438,2]
[380619104,1755821433578,-400.0,0.00016438,2]
[380619105,1755821433587,-400.0,0.00016438,2]
[380619106,1755821433597,-400.0,0.00016438,2]
[380619107,1755821433606,-607.14,0.00016438,2]
[380619108,1755821433616,-1030.75,0.00016438,2]
[380619109,1755821433625,-400.0,0.00016438,2]
[380619110,1755821433635,-400.0,0.00016438,2]
[380619111,1755821433644,-400.0,0.00016438,2]
[380619112,1755821433654,-641.48,0.00016438,2]
[380619113,1755821433663,-400.0,0.00016438,2]
[380619114,1755821433672,-551.49,0.00016438,2]
[380619115,1755821433682,-400.0,0.00016438,2]
[380619116,1755821433692,-1356.72,0.00016438,2]
[380619117,1755821433701,-672.43,0.00016438,2]
[380619118,1755821433711,-756.89,0.00016438,2]
[380619119,1755821433720,-400.0,0.00016438,2]
[380619120,1755821433730,-400.0,0.00016438,2]
[380619121,1755821433739,-569.98,0.00016438,2]
[380619122,1755821433748,-400.0,0.00016438,2]
[380619123,1755821433760,-400.0,0.00016438,2]
[380619124,1755821433769,-400.0,0.00016438,2]
[380619125,1755821433779,-665.62,0.00016438,2]
[380619126,1755821433788,-686.09,0.00016438,2]
[380619127,1755821433797,-443.86,0.00016438,2]
[380619128,1755821433807,-400.0,0.00016438,2]
[380619129,1755821433816,-400.0,0.00016438,2]
[380619130,1755821433826,-400.0,0.00016438,2]
[380619131,1755821433836,-400.0,0.00016438,2]
[380619132,1755821433846,-400.0,0.00016438,2]
[380619133,1755821433855,-400.0,0.00016438,2]
[380619134,1755821433865,-400.0,0.00016438,2]
[380619135,1755821433875,-400.0,0.00016438,2]
[380619136,1755821433885,-400.0,0.00016438,2]
[380619137,1755821433895,-400.0,0.00016438,2]
[380619138,1755821433904,-400.0,0.00016438,2]
[380619139,1755821433913,-407.56,0.00016438,2]
[380619140,1755821433925,-472.86,0.00016438,2]
[380619141,1755821433935,-400.0,0.00016438,2]
[380619142,1755821433944,-609.67,0.00016438,2]
[380619143,1755821433954,-400.0,0.00016438,2]
[380619144,1755821433964,-400.0,0.00016438,2]
[380619145,1755821433973,-707.73,0.00016438,2]
[380619146,1755821433983,-400.0,0.00016438,2]
[380619147,1755821433993,-652.93,0.00016438,2]
[380619148,1755821434002,-449.78,0.00016438,2]
[380619149,1755821434012,-547.25,0.00016438,2]
[380619150,1755821434022,-400.0,0.00016438,2]
[380619151,1755821434032,-400.0,0.00016438,2]
[380619152,1755821434041,-400.0,0.00016438,2]
[380619153,1755821434050,-899.06,0.00016438,2]
[380619154,1755821434060,-400.0,0.00016438,2]
[380619155,1755821434070,-683.08,0.00016438,2]
[380619156,1755821434080,-619.15,0.00016438,2]
[380619157,1755821434090,-400.0,0.00016438,2]
[380619158,1755821434099,-400.0,0.00016438,2]
[380619159,1755821434109,-586.42,0.00016438,2]
[380619160,1755821434118,-429.60873244,0.00016438,2]
[380619161,1755821434128,-400.0,0.00016438,2]
[380619162,1755821434139,-400.0,0.00016438,2]
[380619163,1755821434148,-400.0,0.00016438,2]
[380619164,1755821434157,-392.76012097,0.00016438,2]
[380619165,1755821434167,-437.63,0.00016438,2]
[380619166,1755821434180,-400.0,0.00016438,2]
[380619167,1755821434189,-372.97160547,0.00016438,2]
[380619168,1755821434199,-468.39,0.00016438,2]
[380619169,1755821434208,-400.0,0.00016438,2]
[380619170,1755821434218,-608.92,0.00016438,2]
[380619171,1755821434228,-478.27,0.00016438,2]
[380619172,1755821434238,-400.0,0.00016438,2]
[380619173,1755821434248,-195.66427622,0.00016438,2]
[380619174,1755821434258,-653.69,0.00016438,2]
[380619175,1755821434267,-1000.0,0.00016438,2]
[380619176,1755821434276,-400.0,0.00016438,2]
[380619177,1755821434286,-587.9,0.00016438,2]
[380619178,1755821434295,-458.68,0.00016438,2]
[380619179,1755821434305,-475.98,0.00016438,2]
[380619180,1755821434314,-400.0,0.00016438,2]
[380619181,1755821434324,-400.0,0.00016438,2]
[380619182,1755821434334,-400.0,0.00016438,2]
[380619183,1755821434344,-711.75,0.00016438,2]
[380619184,1755821434354,-448.23,0.00016438,2]
[380619185,1755821434363,-400.0,0.00016438,2]
[380619186,1755821434373,-400.0,0.00016438,2]
[380619187,1755821434382,-417.63,0.00016438,2]
[380619188,1755821434391,-576.81,0.00016438,2]
[380619189,1755821434401,-459.96,0.00016438,2]
[380619190,1755821434411,-400.0,0.00016438,2]
[380619191,1755821434420,-457.94,0.00016438,2]
[380619192,1755821434430,-748.76,0.00016438,2]
[380619193,1755821434440,-400.0,0.00016438,2]
[380619194,1755821434449,-547.28,0.00016438,2]
[380619195,1755821434459,-591.26,0.00016438,2]
[380619196,1755821434468,-400.0,0.00016438,2]
[380619197,1755821434478,-400.0,0.00016438,2]
[380619198,1755821434487,-400.0,0.00016438,2]
[380619199,1755821434497,-493.94,0.00016438,2]
[380619200,1755821434506,-400.0,0.00016438,2]
[380619201,1755821434516,-1017.85,0.00016438,2]
[380619202,1755821434525,-784.84,0.00016438,2]
[380619203,1755821434535,-188.33932318,0.00016438,2]
[380619204,1755821434544,-1051.85,0.00016438,2]
[380619205,1755821434554,-400.0,0.00016438,2]
[380619206,1755821434563,-400.0,0.00016438,2]
[380619207,1755821434573,-400.0,0.00016438,2]
[380619208,1755821434582,-400.0,0.00016438,2]
[380619209,1755821434592,-502.49,0.00016438,2]
[380619210,1755821434601,-948.14,0.00016438,2]
[380619211,1755821434611,-400.0,0.00016438,2]
[380619212,1755821434620,-985.37,0.00016438,2]
[380619213,1755821434629,-400.0,0.00016438,2]
[380619214,1755821434647,-571.06,0.00016438,2]
[380619215,1755821434657,-400.0,0.00016438,2]
[380619216,1755821434666,-418.76,0.00016438,2]
[380619217,1755821434675,-400.0,0.00016438,2]
[380619218,1755821434684,-570.89,0.00016438,2]
[380619219,1755821434694,-400.0,0.00016438,2]
[380619220,1755821434703,-439.67835205,0.00016438,2]
[380619221,1755821434712,-400.0,0.00016438,2]
[380619222,1755821434722,-574.95,0.00016438,2]
[380619223,1755821434731,-400.0,0.00016438,2]
[380619224,1755821434740,-591.76,0.00016438,2]
[380619225,1755821434750,-400.0,0.00016438,2]
[380619226,1755821434759,-400.0,0.00016438,2]
[380619227,1755821434768,-1120.25,0.00016438,2]
[380619228,1755821434778,-811.72,0.00016438,2]
[380619229,1755821434787,-497.63,0.00016438,2]
[380619230,1755821434796,-400.0,0.00016438,2]
[380619231,1755821434806,-400.0,0.00016438,2]
[380619232,1755821434815,-400.0,0.00016438,2]
[380619233,1755821434825,-484.35,0.00016438,2]
[380619234,1755821434834,-400.0,0.00016438,2]
[380619235,1755821434844,-400.0,0.00016438,2]
[380619236,1755821434853,-400.0,0.00016438,2]
[380619237,1755821434863,-400.0,0.00016438,2]
[380619238,1755821434872,-400.0,0.00016438,2]
[380619239,1755821434882,-453.44,0.00016438,2]
[380619240,1755821434891,-602.87,0.00016438,2]
[380619241,1755821434901,-400.0,0.00016438,2]
[380619242,1755821434911,-400.0,0.00016438,2]
[380619243,1755821434920,-400.0,0.00016438,2]
[380619244,1755821434929,-400.0,0.00016438,2]
[380619245,1755821434940,-400.0,0.00016438,2]
[380619246,1755821434950,-400.0,0.00016438,2]
[380619247,1755821434959,-400.0,0.00016438,2]
[380619248,1755821434969,-400.0,0.00016438,2]
[380619249,1755821434978,-1154.05,0.00016438,2]
[380619250,1755821434987,-400.0,0.00016438,2]
[380619251,1755821434997,-709.97,0.00016438,2]
[380619252,1755821435007,-511.37,0.00016438,2]
[380619253,1755821435017,-400.0,0.00016438,2]
[380619254,1755821435028,-400.0,0.00016438,2]
[380619255,1755821435038,-421.46,0.00016438,2]
[380619256,1755821435047,-400.0,0.00016438,2]
[380619257,1755821435056,-400.0,0.00016438,2]
[380619258,1755821435066,-400.0,0.00016438,2]
[380619259,1755821435076,-400.0,0.00016438,2]
[380619260,1755821435087,-1426.17,0.00016438,2]
[380619261,1755821435098,-400.0,0.00016438,2]
[380619262,1755821435109,-400.0,0.00016438,2]
[380619263,1755821435119,-400.0,0.00016438,2]
[380619264,1755821435128,-832.66,0.00016438,2]
[380619265,1755821435138,-676.93,0.00016438,2]
[380619266,1755821435147,-400.0,0.00016438,2]
[380619267,1755821435157,-400.0,0.00016438,2]
[380619268,1755821435166,-179.5019111,0.00016438,2]
[380619269,1755821435179,-419.91095612,0.00016438,2]
[380619270,1755821435189,-400.0,0.00016438,2]
[380619271,1755821435198,-400.0,0.00016438,2]
[380619272,1755821435207,-400.0,0.00016438,2]
[380619273,1755821435217,-747.35,0.00016438,2]
[380619274,1755821435227,-435.44,0.00016438,2]
[380619275,1755821435236,-400.0,0.00016438,2]
[380619276,1755821435247,-453.21,0.00016438,2]
[380619277,1755821435257,-627.66,0.00016438,2]
[380619278,1755821435267,-400.0,0.00016438,2]
[380619279,1755821435277,-677.68,0.00016438,2]
[380619280,1755821435287,-498.41,0.00016438,2]
[380619281,1755821435296,-621.0,0.00016438,2]
[380619282,1755821435305,-400.0,0.00016438,2]
[380619283,1755821435315,-400.0,0.00016438,2]
[380619284,1755821435325,-400.0,0.00016438,2]
[380619285,1755821435334,-416.75,0.00016438,2]
[380619286,1755821435344,-400.0,0.00016438,2]
[380619287,1755821435354,-400.0,0.00016438,2]
[380619288,1755821435364,-400.0,0.00016438,2]
[380619289,1755821435374,-463.53,0.00016438,2]
[380619290,1755821435384,-400.0,0.00016438,2]
[380619291,1755821435394,-438.47,0.00016438,2]
[380619292,1755821435403,-743.73,0.00016438,2]
[380619293,1755821435412,-510.92,0.00016438,2]
[380619294,1755821435422,-400.0,0.00016438,2]
[380619295,1755821435431,-400.0,0.00016438,2]
[380619296,1755821435441,-400.0,0.00016438,2]
[380619297,1755821435450,-400.0,0.00016438,2]
[380619298,1755821435460,-400.0,0.00016438,2]
[380619299,1755821435470,-400.0,0.00016438,2]
[380619300,1755821435479,-400.0,0.00016438,2]
[380619301,1755821435489,-400.0,0.00016438,2]
[380619302,1755821435498,-795.99,0.00016438,2]
[380619303,1755821435508,-400.0,0.00016438,2]
[380619304,1755821435517,-400.0,0.00016438,2]
[380619305,1755821435527,-185.80786818,0.00016438,2]
[380619306,1755821435537,-422.57,0.00016438,2]
[380619307,1755821435546,-1350.48,0.00016438,2]
[380619308,1755821435557,-400.0,0.00016438,2]
[380619309,1755821435566,-400.0,0.00016438,2]
[380619310,1755821435576,-400.0,0.00016438,2]
[380619311,1755821435585,-500.96,0.00016438,2]
[380619312,1755821435594,-400.0,0.00016438,2]
[380619313,1755821435603,-411.94343376,0.00016438,2]
[380619314,1755821435612,-400.0,0.00016438,2]
[380619315,1755821435622,-1093.98,0.00016438,2]
[380619316,1755821435631,-400.0,0.00016438,2]
[380619317,1755821435643,-400.0,0.00016438,2]
[380619318,1755821435653,-400.0,0.00016438,2]
[380619319,1755821435664,-4262.96,0.00016438,2]
[380619320,1755821435674,-830.78,0.00016438,2]
[380619321,1755821435683,-400.0,0.00016438,2]
[380619322,1755821435692,-410.63,0.00016438,2]
[380619323,1755821435702,-645.5,0.00016438,2]
[380619324,1755821435711,-549.67,0.00016438,2]
[380619325,1755821435721,-631.29,0.00016438,2]
[380619326,1755821435730,-539.67,0.00016438,2]
[380619327,1755821435739,-400.0,0.00016438,2]
[380619328,1755821435748,-400.0,0.00016438,2]
[380619329,1755821435757,-400.0,0.00016438,2]
[380619330,1755821435766,-403.53,0.00016438,2]
[380619331,1755821435776,-400.0,0.00016438,2]
[380619332,1755821435785,-473.43,0.00016438,2]
[380619333,1755821435795,-534.24,0.00016438,2]
[380619334,1755821435804,-839.56,0.00016438,2]
[380619335,1755821435813,-400.0,0.00016438,2]
[380619336,1755821435823,-795.16,0.00016438,2]
[380619337,1755821435832,-623.98,0.00016438,2]
[380619338,1755821435842,-561.84,0.00016438,2]
[380619339,1755821435852,-501.88,0.00016438,2]
[380619340,1755821435861,-502.07,0.00016438,2]
[380619341,1755821435870,-400.0,0.00016438,2]
[380619342,1755821435880,-400.0,0.00016438,2]
[380619343,1755821435889,-400.0,0.00016438,2]
[380619344,1755821435898,-400.0,0.00016438,2]
[380619345,1755821435907,-416.91,0.00016438,2]
[380619346,1755821435917,-438.61,0.00016438,2]
[380619347,1755821435926,-400.0,0.00016438,2]
[380619348,1755821435935,-608.71,0.00016438,2]
[380619349,1755821435944,-400.0,0.00016438,2]
[380619350,1755821435953,-400.0,0.00016438,2]
[380619351,1755821435962,-677.33,0.00016438,2]
[380619352,1755821435972,-503.22,0.00016438,2]
[380619353,1755821435981,-913.28,0.00016438,2]
[380619354,1755821435990,-400.0,0.00016438,2]
[380619355,1755821435999,-400.0,0.00016438,2]
[380619356,1755821436008,-400.0,0.00016438,2]
[380619357,1755821436017,-491.49,0.00016438,2]
[380619358,1755821436028,-468.28,0.00016438,2]
[380619359,1755821436037,-400.0,0.00016438,2]
[380619360,1755821436047,-400.0,0.00016438,2]
[380619361,1755821436056,-400.0,0.00016438,2]
[380619362,1755821436066,-400.0,0.00016438,2]
[380619363,1755821436075,-400.0,0.00016438,2]
[380619364,1755821436085,-541.43,0.00016438,2]
[380619365,1755821436095,-400.0,0.00016438,2]
[380619366,1755821436104,-431.82,0.00016438,2]
[380619367,1755821436113,-400.0,0.00016438,2]
[380619368,1755821436123,-400.0,0.00016438,2]
[380619369,1755821436132,-860.33,0.00016438,2]
[380619370,1755821436141,-1058.08,0.00016438,2]
[380619371,1755821436151,-400.0,0.00016438,2]
[380619372,1755821436160,-1035.35,0.00016438,2]
[380619373,1755821436172,-400.0,0.00016438,2]
[380619374,1755821436182,-470.97,0.00016438,2]
[380619375,1755821436191,-400.0,0.00016438,2]
[380619376,1755821436202,-400.0,0.00016438,2]
[380619377,1755821436211,-499.22,0.00016438,2]
[380619378,1755821436221,-400.09807511,0.00016438,2]
[380619379,1755821436230,-427.35,0.00016438,2]
[380619380,1755821436239,-400.0,0.00016438,2]
[380619381,1755821436250,-400.0,0.00016438,2]
[380619382,1755821436260,-453.31,0.00016438,2]
[380619383,1755821436269,-400.0,0.00016438,2]
[380619384,1755821436280,-400.0,0.00016438,2]
[380619385,1755821436290,-594.14,0.00016438,2]
[380619386,1755821436300,-400.0,0.00016438,2]
[380619387,1755821436310,-400.0,0.00016438,2]
[380619388,1755821436319,-400.0,0.00016438,2]
[380619389,1755821436328,-400.0,0.00016438,2]
[380619390,1755821436337,-400.0,0.00016438,2]
[380619391,1755821436347,-400.0,0.00016438,2]
[380619392,1755821436356,-400.0,0.00016438,2]
[380619393,1755821436366,-400.0,0.00016438,2]
[380619394,1755821436374,-400.0,0.00016438,2]
[380619395,1755821436384,-615.89,0.00016438,2]
[380619396,1755821436393,-425.65,0.00016438,2]
[380619397,1755821436403,-400.0,0.00016438,2]
[380619398,1755821436412,-591.96,0.00016438,2]
[380619399,1755821436421,-981.54,0.00016438,2]
[380619400,1755821436431,-400.0,0.00016438,2]
[380619401,1755821436441,-400.0,0.00016438,2]
[380619402,1755821436450,-963.15,0.00016438,2]
[380619403,1755821436459,-400.0,0.00016438,2]
[380619404,1755821436468,-1031.94,0.00016438,2]
[380619405,1755821436478,-332.04387164,0.00016438,2]
[380619406,1755821436489,-252.39593316,0.00016438,2]
[380619407,1755821436498,-289.48985144,0.00016438,2]
[380619408,1755821436508,-400.0,0.00016438,2]
[380619409,1755821436517,-400.0,0.00016438,2]
[380619410,1755821436527,-400.0,0.00016438,2]
[380619411,1755821436536,-858.15,0.00016438,2]
[380619412,1755821436546,-423.16,0.00016438,2]
[380619413,1755821436556,-400.0,0.00016438,2]
[380619414,1755821436565,-400.0,0.00016438,2]
[380619415,1755821436575,-401.74,0.00016438,2]
[380619416,1755821436585,-515.24,0.00016438,2]
[380619417,1755821436595,-732.49,0.00016438,2]
[380619418,1755821436605,-400.0,0.00016438,2]
[380619419,1755821436614,-467.9,0.00016438,2]
[380619420,1755821436624,-400.0,0.00016438,2]
[380619421,1755821436633,-400.0,0.00016438,2]
[380619422,1755821436643,-400.0,0.00016438,2]
[380619423,1755821436652,-400.0,0.00016438,2]
[380619424,1755821436661,-623.21,0.00016438,2]
[380619425,1755821436671,-400.0,0.00016438,2]
[380619426,1755821436680,-419.18,0.00016438,2]
[380619427,1755821436690,-400.0,0.00016438,2]
[380619428,1755821436699,-400.0,0.00016438,2]
[380619429,1755821436708,-400.0,0.00016438,2]
[380619430,1755821436718,-462.13,0.00016438,2]
[380619431,1755821436727,-400.0,0.00016438,2]
[380619432,1755821436736,-400.0,0.00016438,2]
[380619433,1755821436746,-400.0,0.00016438,2]
[380619434,1755821436755,-400.0,0.00016438,2]
[380619435,1755821436764,-588.2,0.00016438,2]
[380619436,1755821436774,-400.0,0.00016438,2]
[380619437,1755821436784,-400.0,0.00016438,2]
[380619438,1755821436794,-400.0,0.00016438,2]
[380619439,1755821436804,-400.0,0.00016438,2]
[380619440,1755821436814,-432.19,0.00016438,2]
[380619441,1755821436823,-499.41,0.00016438,2]
[380619442,1755821436833,-400.0,0.00016438,2]
[380619443,1755821436842,-400.0,0.00016438,2]
[380619444,1755821436852,-400.0,0.00016438,2]
[380619445,1755821436861,-400.0,0.00016438,2]
[380619446,1755821436870,-609.45,0.00016438,2]
[380619447,1755821436880,-592.48,0.00016438,2]
[380619448,1755821436890,-400.0,0.00016438,2]
[380619449,1755821436900,-604.18,0.00016438,2]
[380619450,1755821436909,-400.0,0.00016438,2]
[380619451,1755821436919,-459.89,0.00016438,2]
[380619452,1755821436929,-603.98,0.00016438,2]
[380619453,1755821436938,-678.02,0.00016438,2]
[380619454,1755821436947,-698.99,0.00016438,2]
[380619455,1755821436957,-669.85,0.00016438,2]
[380619456,1755821436966,-400.0,0.00016438,2]
[380619457,1755821436976,-400.0,0.00016438,2]
[380619458,1755821436986,-671.6,0.00016438,2]
[380619459,1755821436995,-521.0,0.00016438,2]
[380619460,1755821437004,-400.0,0.00016438,2]
[380619461,1755821437014,-400.0,0.00016438,2]
[380619462,1755821437024,-426.68,0.00016438,2]
[380619463,1755821437034,-400.0,0.00016438,2]
[380619464,1755821437044,-400.0,0.00016438,2]
[380619465,1755821437053,-260.74923602,0.00016438,2]
[380619466,1755821437063,-1060.87,0.00016438,2]
[380619467,1755821437073,-400.0,0.00016438,2]
[380619468,1755821437083,-1030.96,0.00016438,2]
[380619469,1755821437092,-400.0,0.00016438,2]
[380619470,1755821437102,-959.99,0.00016438,2]
[380619471,1755821437111,-400.0,0.00016438,2]
[380619472,1755821437121,-850.28,0.00016438,2]
[380619473,1755821437131,-400.0,0.00016438,2]
[380619474,1755821437140,-776.76,0.00016438,2]
[380619475,1755821437149,-400.0,0.00016438,2]
[380619476,1755821437159,-450.77,0.00016438,2]
[380619477,1755821437170,-400.0,0.00016438,2]
[380619478,1755821437181,-776.04,0.00016438,2]
[380619479,1755821437190,-400.0,0.00016438,2]
[380619480,1755821437200,-854.33,0.00016438,2]
[380619481,1755821437209,-419.27,0.00016438,2]
[380619482,1755821437219,-400.0,0.00016438,2]
[380619483,1755821437228,-457.37,0.00016438,2]
[380619484,1755821437237,-608.27,0.00016438,2]
[380619485,1755821437246,-400.0,0.00016438,2]
[380619486,1755821437257,-400.0,0.00016438,2]
[380619487,1755821437268,-400.0,0.00016438,2]
[380619488,1755821437278,-400.0,0.00016438,2]
[380619489,1755821437288,-400.0,0.00016438,2]
[380619490,1755821437297,-400.0,0.00016438,2]
[380619491,1755821437307,-400.0,0.00016438,2]
[380619492,1755821437316,-400.0,0.00016438,2]
[380619493,1755821437325,-879.35,0.00016438,2]
[380619494,1755821437335,-400.0,0.00016438,2]
[380619495,1755821437345,-868.8,0.00016438,2]
[380619496,1755821437355,-400.0,0.00016438,2]
[380619497,1755821437365,-895.43,0.00016438,2]
[380619498,1755821437374,-400.0,0.00016438,2]